[Event "3rd Mersin Open 2018"]
[Site "Mersin"]
[Date "2018.09.13"]
[Round "5.6"]
[White "Koksal, Ege"]
[Black "Ererdem, Gani Eren"]
[Result "1-0"]
[ECO "E44"]
[WhiteElo "2367"]
[BlackElo "2137"]
[Annotator "NA"]
[PlyCount "79"]
[EventDate "2018.09.09"]
[EventType "swiss"]
[EventCountry "TUR"]
[SourceTitle "playchess.com"]
[Source "ChessBase"]
[SourceQuality "1"]
[TimeControl "5400+30"]

{[%evp 13,79,16,32767,32767,32767,41,46,32767,43,45,39,36,73,71,77,77,87,49,63,43,64,38,49,0,-7,-24,20,32767,0,-63,-47,-52,-11,0,0,-21,28,34,36,33,64,32767,32767,32767,32767,32767,213,231,216,216,241,296,324,374,378,368,464,502,32767,32767,32767,32767,32767,1319,1283,1693,1561,1997]} 1. d4 {[%emt 0:00:30]} Nf6 {[%emt 0:00:30]} 2. c4 {[%emt 0:00:00]} e6 {[%emt 0:00:00]} 3. Nc3 {[%emt 0:00:00]} Bb4 {[%emt 0:00:00]} 4. e3 {[%emt 0:00:30]} b6 {[%emt 0:01:30]} 5. Nge2 {[%emt 0:01:30]} Bb7 {[%emt 0:00:00]} 6. a3 {[%emt 0:00:30]} Be7 {[%emt 0:00:00]} 7. d5 {[%emt 0:03:30]} O-O {[%emt 0:00:30]} 8. Ng3 {[%emt 0:00:30]} Re8 {[%emt 0:15:30] E44: Nimzo-Indian: Rubinstein: 4...b6 5 Ne2} 9. Be2 {[%emt 0:03:30] LiveBook: 22 Games} d6 {[%emt 0:12:30]} 10. O-O {[%emt 0:01:30]} c6 {[%emt 0:03:30]} 11. dxe6 {[%emt 0:00:30]} fxe6 {[%emt 0:00:30]} 12. e4 {[%emt 0:01:30]} Nbd7 $146 {[%emt 0:10:30]} ({Predecessor:} 12... c5 13. Be3 Nc6 14. f4 Nd4 15. Bd3 e5 16. Nd5 {1-0 (83) Guliev,S (2477)-Gorin,L (2388) Koszalin 1999}) 13. f4 {[%emt 0:00:30]} Qc7 {[%emt 0:05:30]} 14. Be3 {[%emt 0:03:30]} Rad8 {[%emt 0:01:30]} 15. Kh1 {[%emt 0:07:30]} a6 {[%emt 0:01:30]} 16. Rc1 {[%emt 0:01:30]} Kh8 {[%emt 0:10:30]} 17. f5 {[%emt 0:05:30]} exf5 {[%emt 0:02:30]} 18. exf5 {[%emt 0:01:30]} c5 {[%emt 0:03:30]} 19. Bf4 {[%emt 0:16:30]} Bc6 {[%emt 0:04:30]} 20. Bf3 {[%emt 0:04:30]} b5 {[%emt 0:11:57]} 21. Qd3 {[%emt 0:32:42]} (21. cxb5 $11 axb5 22. Re1) 21... bxc4 {[%emt 0:04:31]} 22. Qxc4 {[%emt 0:00:01]} Qb7 23. Bxc6 Qxc6 24. Rcd1 Nb6 ({Black should play} 24... Bf8 $15) 25. Qxa6 d5 26. Qb5 Rc8 27. Qxc6 Rxc6 28. Nb5 Kg8 29. Na7 Rd6 30. Bxd6 Bxd6 31. Rfe1 Rxe1+ 32. Rxe1 Nc4 33. a4 Bc7 34. Nc6 d4 35. b3 Nd2 36. a5 Nxb3 37. a6 Bb6 38. Ne7+ Kf7 39. Nc8 Nd5 $18 40. Re5 1-0

[Event "3rd Mersin Open 2018"]
[Site "Mersin"]
[Date "2018.09.13"]
[Round "5.7"]
[White "Zor, Alber Kadir"]
[Black "Zeynalli, Rashad"]
[Result "1-0"]
[ECO "A04"]
[WhiteElo "2134"]
[BlackElo "2318"]
[Annotator "NA"]
[PlyCount "85"]
[EventDate "2018.09.09"]
[EventType "swiss"]
[EventCountry "TUR"]
[SourceTitle "playchess.com"]
[Source "ChessBase"]
[SourceQuality "1"]
[TimeControl "5400+30"]

1. Nf3 {[%emt 0:00:30]} f5 {[%emt 0:00:30]} 2. d3 {[%emt 0:00:00]} d6 {[%emt 0:00:30]} 3. e4 {[%emt 0:00:00]} e5 {[%emt 0:00:30]} 4. Nc3 {[%emt 0:00:30]} Nf6 {[%emt 0:00:30]} 5. exf5 {[%emt 0:01:30] A04: Unusual lines after 1 Nf3 and King's Indian Attack} Bxf5 {[%emt 0:00:30]} 6. d4 {[%emt 0:00:00]} e4 {[%emt 0:05:30]} 7. Nh4 {[%emt 0:00:00]} Bg4 {[%emt 0:04:30]} 8. Be2 {[%emt 0:00:30]} Bxe2 {[%emt 0:00:30]} 9. Qxe2 {[%emt 0:00:00] LiveBook: 20 Games} d5 {[%emt 0:03:30] [#]} 10. Bg5 $1 {[%emt 0:01:00]} Bb4 {[%emt 0:05:30] [#]} 11. Qb5+ $1 {[%emt 0:01:30]} (11. O-O O-O 12. Nf5 Nc6 {½-½ (36) Grischuk,A (2783)-Ponomariov,R (2731) Beijing 2013}) 11... Nc6 {[%emt 0:00:30]} 12. Qxb7 {[%emt 0:00:00]} Nxd4 {[%emt 0:00:30]} 13. O-O-O $146 {[%emt 0:00:00]} Bxc3 {[%emt 0:04:30]} 14. bxc3 {[%emt 0:12:30]} Rb8 {[%emt 0:10:30] [#]} 15. Bxf6 $1 {[%emt 0:02:30]} ({Of course not} 15. Qa6 $6 Nb5 $15) 15... gxf6 {[%emt 0:02:30] [#]} 16. Qa6 $1 {[%emt 0:01:30]} Rb6 {[%emt 0:03:30] [#]} 17. Qa4+ $1 {[%emt 0:00:00]} Nc6 {[%emt 0:01:30] [#]} 18. Rhe1 $1 {[%emt 0:00:00]} O-O {[%emt 0:05:30] [#]} 19. Rxe4 $1 {[%emt 0:03:30]} Ne5 {[%emt 0:16:30]} (19... f5 $142 20. Rf4 Ne7) 20. Nf5 {[%emt 0:09:30]} ({And not} 20. Qxa7 Qd6 $11) 20... Qb8 {[%emt 0:06:30]} 21. Rxd5 {[%emt 0:17:30]} Rb1+ {[%emt 0:05:30]} 22. Kd2 {[%emt 0:00:00]} Kh8 {[%emt 0:04:42]} 23. Rexe5 {[%emt 0:10:00]} fxe5 {[%emt 0:01:20]} 24. Qd7 {[%emt 0:00:30]} Rg8 {[%emt 0:03:39]} 25. Qe7 {[%emt 0:00:00]} Qf8 {[%emt 0:00:58]} 26. Qxe5+ {[%emt 0:01:00]} Rg7 $18 {[%emt 0:00:01]} 27. Qxg7+ {[%emt 0:01:30]} Qxg7 {[%emt 0:00:34]} 28. Nxg7 {[%emt 0:00:00]} Kxg7 {[%emt 0:00:03]} 29. Rd7+ {[%emt 0:00:00]} Kg6 {[%emt 0:00:12]} 30. Rxc7 {[%emt 0:00:30]} Rg1 {[%emt 0:00:00]} 31. g3 {[%emt 0:00:30]} Rf1 {[%emt 0:00:00]} 32. Ke2 {[%emt 0:00:30]} Rc1 {[%emt 0:00:00]} 33. Rxa7 {[%emt 0:00:00]} Rxc2+ {[%emt 0:00:00]} 34. Kf3 {[%emt 0:00:00]} Rxc3+ {[%emt 0:00:48]} 35. Kg2 {[%emt 0:00:00]} h5 {[%emt 0:00:00]} 36. h4 {[%emt 0:00:00]} Rc2 {[%emt 0:00:00]} 37. a4 {[%emt 0:00:30]} Ra2 {[%emt 0:00:24]} 38. a5 {[%emt 0:00:30]} Kf5 {[%emt 0:00:00]} 39. a6 {[%emt 0:00:00]} Kg6 {[%emt 0:00:35]} 40. Ra8 {[%emt 0:00:00]} Kg7 {[%emt 0:00:00]} 41. a7 {[%emt 0:00:00]} Ra3 {[%emt 0:00:04]} 42. f4 {[%emt 0:00:00]} Ra2+ {[%emt 0:00:55]} 43. Kh3 {[%emt 0:00:00]} 1-0

[Event "3rd Mersin Open 2018"]
[Site "Mersin"]
[Date "2018.09.13"]
[Round "5.9"]
[White "Dogan, Nazmi Can"]
[Black "Buke, Furkan"]
[Result "1-0"]
[ECO "E05"]
[WhiteElo "2275"]
[BlackElo "1964"]
[Annotator "NA"]
[PlyCount "107"]
[EventDate "2018.09.09"]
[EventType "swiss"]
[EventCountry "TUR"]
[SourceTitle "playchess.com"]
[Source "ChessBase"]
[SourceQuality "1"]
[TimeControl "5400+30"]

{[%evp 29,91,230,233,32767,32767,226,238,32767,32767,249,310,331,281,298,252,269,270,275,268,225,334,268,286,288,297,303,291,32767,291,299,352,297,323,286,610,312,290,32767,32767,32767,32767,32767,32767,32767,318,32767,32767,32767,32767,543,533,468,444,540,616,591,543,557,658,558,747,426,839,645]} 1. d4 {[%emt 0:00:30]} Nf6 {[%emt 0:00:30]} 2. c4 {[%emt 0:00:00]} e6 {[%emt 0:00:00]} 3. g3 {[%emt 0:00:00]} d5 {[%emt 0:00:00]} 4. Nf3 {[%emt 0:00:00]} Be7 {[%emt 0:00:30]} 5. Bg2 {[%emt 0:00:00]} O-O {[%emt 0:00:00]} 6. O-O {[%emt 0:00:30]} dxc4 {[%emt 0:00:00]} 7. Qc2 {[%emt 0:00:00]} b6 {[%emt 0:00:30] E05: Open Catalan: 5 Nf3 Be7} (7... a6 8. a4 Bd7 9. Qxc4 Bc6 10. Bf4 Bd6 11. Nc3 Bxf4 12. gxf4 a5 13. e3 Nbd7 14. Kh1 Ra6 15. Rg1 Rb6 16. Qe2 Ne4 17. Qc2 f5 18. Nxe4 Bxe4 {½-½ (56) Aronian,L (2767)-So,W (2780) Saint Louis 2018}) 8. Bg5 {[%emt 0:07:00]} Bb7 {[%emt 0:03:30]} 9. Bxf6 {[%emt 0:01:30]} Bxf6 {[%emt 0:00:30]} 10. Ng5 {[%emt 0:00:00]} Bxg5 {[%emt 0:00:30]} 11. Bxb7 {[%emt 0:00:00]} Nd7 {[%emt 0:00:30]} 12. Bxa8 {[%emt 0:00:30]} Qxa8 {[%emt 0:00:30]} 13. Qxc4 {[%emt 0:00:30]} c5 {[%emt 0:00:30]} 14. Nc3 {[%emt 0:01:30]} Bf6 {[%emt 0:00:30]} 15. dxc5 {[%emt 0:01:30]} Nxc5 {[%emt 0:00:00]} 16. Rac1 $146 {[%emt 0:01:30]} a5 {[%emt 0:02:00]} 17. b3 {[%emt 0:01:30]} Qb7 {[%emt 0:00:30]} 18. Rfd1 {[%emt 0:02:30]} h5 {[%emt 0:00:30]} 19. h4 {[%emt 0:01:30]} Bd8 {[%emt 0:01:30]} 20. Na4 {[%emt 0:00:30]} Be7 {[%emt 0:00:30]} 21. Nxc5 {[%emt 0:00:30]} Bxc5 {[%emt 0:00:30]} 22. Qf4 {[%emt 0:03:30]} Qe7 {[%emt 0:03:30]} 23. Rd3 {[%emt 0:01:30]} e5 {[%emt 0:00:30]} 24. Qg5 {[%emt 0:00:30]} Qe6 {[%emt 0:00:30]} (24... Qxg5 {might work better.} 25. hxg5 Kh7) 25. Rd8 {[%emt 0:02:30]} Rxd8 {[%emt 0:00:30]} 26. Qxd8+ {[%emt 0:00:30]} Kh7 {[%emt 0:00:30]} 27. e3 {[%emt 0:04:30]} Qg4 {[%emt 0:01:30]} 28. Qd1 {[%emt 0:04:30]} Qf5 {[%emt 0:03:30]} 29. Qd5 {[%emt 0:00:30]} f6 {[%emt 0:01:30]} 30. Kg2 {[%emt 0:02:30]} Qg6 {[%emt 0:01:30]} 31. Rc4 {[%emt 0:02:30]} Kh8 {[%emt 0:01:30]} (31... Qe8 $142 32. Qe4+ Kh6) 32. Qa8+ {[%emt 0:02:30]} Kh7 {[%emt 0:00:30]} 33. Qe4 {[%emt 0:01:30]} Qxe4+ {[%emt 0:00:30]} 34. Rxe4 {[%emt 0:00:00]} Kg6 {[%emt 0:00:00]} 35. Rc4 {[%emt 0:00:00]} Kf5 {[%emt 0:00:00]} 36. Kf3 {[%emt 0:00:30]} Ke6 {[%emt 0:00:30]} 37. g4 {[%emt 0:13:30]} hxg4+ {[%emt 0:00:30]} 38. Rxg4 {[%emt 0:00:30]} Bf8 {[%emt 0:00:30]} 39. a4 {[%emt 0:03:30]} Kd5 {[%emt 0:02:30]} 40. Ke2 {[%emt 0:02:30]} e4 {[%emt 0:00:30]} 41. f3 {[%emt 0:00:00]} exf3+ {[%emt 0:02:30]} 42. Kxf3 {[%emt 0:00:00]} Ke5 {[%emt 0:00:30]} 43. h5 {[%emt 0:04:30]} Kf5 {[%emt 0:00:30]} 44. Rg2 {[%emt 0:00:30]} Ke5 {[%emt 0:00:30]} 45. Rd2 {[%emt 0:00:30]} Bd6 $18 {[%emt 0:00:30]} 46. e4 {[%emt 0:00:30]} Ke6 {[%emt 0:00:30]} 47. Rd5 {[%emt 0:00:30]} Be7 {[%emt 0:01:30]} 48. Ke2 {[%emt 0:00:30]} Bc5 {[%emt 0:01:30]} 49. Kd3 {[%emt 0:00:30]} Bf2 {[%emt 0:02:30]} 50. Kc4 {[%emt 0:00:00]} Be1 {[%emt 0:01:30]} 51. Kb5 {[%emt 0:00:00]} Bf2 {[%emt 0:00:30]} 52. Kc6 {[%emt 0:00:30]} Be3 {[%emt 0:00:30]} 53. Rd3 {[%emt 0:01:30]} Bf2 {[%emt 0:01:30]} 54. Rd7 {[%emt 0:00:30]} 1-0

[Event "3rd Mersin Open 2018"]
[Site "Mersin"]
[Date "2018.09.13"]
[Round "5.10"]
[White "Bacak, Muhammed Kaan"]
[Black "Kazimova, Narmin"]
[Result "1/2-1/2"]
[ECO "A05"]
[WhiteElo "2126"]
[BlackElo "2264"]
[Annotator "NA"]
[PlyCount "56"]
[EventDate "2018.09.09"]
[EventType "swiss"]
[EventCountry "TUR"]
[SourceTitle "playchess.com"]
[Source "ChessBase"]
[SourceQuality "1"]
[TimeControl "5400+30"]

{[%evp 9,52,12,9,32767,17,32767,32767,37,57,32767,27,13,60,37,27,19,53,50,41,38,39,38,42,39,32767,32767,32767,32767,86,92,97,103,126,115,124,83,95,62,91,26,41,30,25,26,25]} 1. Nf3 {[%emt 0:00:30]} Nf6 {[%emt 0:00:30]} 2. g3 {[%emt 0:00:00]} c5 {[%emt 0:01:30] A05: Réti Opening: 1 Nf3 Nf6} (2... d5 3. Bg2 e6 4. O-O Be7 5. c4 O-O 6. b3 c5 7. cxd5 Nxd5 8. Bb2 Nc6 9. d4 cxd4 10. Nxd4 Nxd4 11. Qxd4 Bf6 12. Qd2 Nf4 13. gxf4 Qxd2 14. Nxd2 Bxb2 15. Rab1 Bf6 16. Rbc1 Rd8 17. Ne4 Be7 18. Rc7 Kf8 19. Rfc1 {1-0 (49) Kramnik,V (2792)-Mamedyarov,S (2808) Paris 2018}) 3. b3 {[%emt 0:03:00]} Nc6 {[%emt 0:01:30]} 4. Bb2 {[%emt 0:00:00]} d6 {[%emt 0:07:30]} 5. Bg2 {[%emt 0:05:00]} e5 {[%emt 0:00:30]} 6. O-O {[%emt 0:00:30]} Be7 {[%emt 0:01:30]} 7. c4 {[%emt 0:04:30]} h6 {[%emt 0:02:30]} 8. e3 $146 {[%emt 0:03:30]} ({Predecessor:} 8. Nc3 Be6 9. d3 Qd7 10. Re1 g5 11. e3 {1-0 (40) Drmic,T (2219)-Ivekovic,Z (2345) Sibenik 2016}) 8... O-O {[%emt 0:25:30]} 9. d4 {[%emt 0:01:30]} exd4 {[%emt 0:04:30]} 10. exd4 {[%emt 0:02:30]} Bf5 {[%emt 0:00:00]} 11. Nc3 {[%emt 0:06:30]} Re8 {[%emt 0:06:00]} 12. Qd2 {[%emt 0:13:30]} (12. d5 $5 {[%cal Rd5c6]} Nb4 13. Ne1 $11) 12... Bh7 {[%emt 0:02:30]} 13. Rad1 {[%emt 0:07:30]} Nb4 {[%emt 0:00:30]} 14. dxc5 {[%emt 0:02:30]} dxc5 {[%emt 0:01:30]} 15. Ne5 {[%emt 0:01:30]} Bc2 {[%emt 0:10:30]} 16. Qxd8 {[%emt 0:05:30]} Raxd8 {[%emt 0:01:30]} 17. Rxd8 {[%emt 0:02:30]} Bxd8 {[%emt 0:00:30]} 18. f4 {[%emt 0:01:30]} Nd3 {[%emt 0:11:30]} 19. Nxd3 {[%emt 0:00:30]} ({Bitte nicht} 19. Bxb7 $6 Nxb2 20. Rf2 {[#]} Nxc4 $1 $11 {[%mdl 512]}) 19... Bxd3 {[%emt 0:00:30]} 20. Rd1 {[%emt 0:00:30]} Bf5 {[%emt 0:04:29]} 21. Bxb7 {[%emt 0:03:30]} Ba5 {[%emt 0:00:01]} 22. Bg2 {[%emt 0:03:30]} Bg4 {[%emt 0:06:25]} 23. Rf1 {[%emt 0:01:30]} Re3 {[%emt 0:01:40]} 24. Nd5 {[%emt 0:03:30]} (24. Na4 $16) 24... Nxd5 {[%emt 0:00:01]} 25. Bxd5 {[%emt 0:00:00]} Bh3 {[%emt 0:01:49]} 26. Bg2 {[%emt 0:03:00]} Re2 $11 {[%emt 0:03:24]} 27. Bxh3 Rxb2 28. Rf2 Bd2 1/2-1/2

[Event "3rd Mersin Open 2018"]
[Site "Mersin"]
[Date "2018.09.13"]
[Round "5.11"]
[White "Ozcan, Berk"]
[Black "Subasi, Fidel"]
[Result "1-0"]
[ECO "C18"]
[WhiteElo "1617"]
[BlackElo "1659"]
[Annotator "NA"]
[PlyCount "71"]
[EventDate "2018.09.09"]
[EventType "swiss"]
[EventCountry "TUR"]
[SourceTitle "playchess.com"]
[Source "ChessBase"]
[SourceQuality "1"]
[TimeControl "5400+30"]

1. e4 e6 2. d4 d5 3. Nc3 Bb4 4. e5 Ne7 5. a3 Bxc3+ 6. bxc3 c5 7. Qg4 Qc7 8. Qxg7 Rg8 9. Qxh7 cxd4 10. Ne2 Nbc6 11. f4 dxc3 12. h4 Bd7 13. h5 O-O-O 14. Qd3 d4 15. h6 Ng6 16. Rb1 Be8 17. Rh3 a6 18. Qe4 Ncxe5 19. Nxd4 Nc6 20. Nb3 Nce7 21. Na5 Bc6 22. Nxc6 Nxc6 23. Rxc3 Rd4 24. Qxd4 Nxd4 25. Rxc7+ Kxc7 26. Bd3 Nh8 27. Kf2 f6 28. Bb2 e5 29. Bxd4 exd4 30. Re1 Kd6 31. Re4 Nf7 32. Rxd4+ Ke7 33. h7 Rh8 34. g4 Nd6 35. g5 f5 36. Rxd6 1-0

[Event "3rd Mersin Open 2018"]
[Site "Mersin"]
[Date "2018.09.13"]
[Round "5.12"]
[White "Hatirli, Ugur Can"]
[Black "Kizilkus, Tanju"]
[Result "1/2-1/2"]
[ECO "D78"]
[WhiteElo "1608"]
[BlackElo "1594"]
[Annotator "NA"]
[PlyCount "92"]
[EventDate "2018.09.09"]
[EventType "swiss"]
[EventCountry "TUR"]
[SourceTitle "playchess.com"]
[Source "ChessBase"]
[SourceQuality "1"]
[TimeControl "5400+30"]

1. d4 Nf6 2. Nf3 g6 3. g3 Bg7 4. Bg2 O-O 5. O-O d5 6. c4 c6 7. b3 Ne4 8. Bb2 Nd7 9. Nbd2 Ndf6 10. e3 Qa5 11. Nxe4 Nxe4 12. Qc2 Bf5 13. Qe2 Bg4 14. Rfd1 dxc4 15. h3 Bxf3 16. Bxf3 Ng5 17. Bg2 cxb3 18. axb3 Qf5 19. g4 Qe6 20. Qd3 h6 21. f4 Nh7 22. d5 cxd5 23. Bxg7 Kxg7 24. Bxd5 Qb6 25. Qd4+ Nf6 26. Qxb6 axb6 27. Bxb7 Rxa1 28. Rxa1 Rd8 29. Ra6 Rd3 30. Rxb6 Rxe3 31. Bg2 h5 32. Kf2 Rc3 33. g5 Ne8 34. Rb7 e6 35. b4 Nd6 36. Rb6 Nf5 37. b5 Rc2+ 38. Kg1 Rc1+ 39. Kf2 Rc4 40. Rb8 Rxf4+ 41. Kg1 Ne3 42. Bc6 Rf1+ 43. Kh2 h4 44. b6 Rf2+ 45. Kg1 Rf1+ 46. Kh2 Rf2+ 1/2-1/2

[Event "3rd Mersin Open 2018"]
[Site "Mersin"]
[Date "2018.09.13"]
[Round "5.13"]
[White "Polat, Ahmet Eren"]
[Black "Kiyak, Ali"]
[Result "1/2-1/2"]
[ECO "C55"]
[WhiteElo "1669"]
[BlackElo "1580"]
[Annotator "NA"]
[PlyCount "50"]
[EventDate "2018.09.09"]
[EventType "swiss"]
[EventCountry "TUR"]
[SourceTitle "playchess.com"]
[Source "ChessBase"]
[SourceQuality "1"]
[TimeControl "5400+30"]

1. e4 e5 2. Nf3 Nc6 3. Bc4 Be7 4. d3 Nf6 5. c3 O-O 6. Bb3 d6 7. Nbd2 Kh8 8. Nf1 Ng8 9. Ng3 f5 10. exf5 Bxf5 11. Nxf5 Rxf5 12. Bc2 d5 13. Qe2 Qf8 14. O-O Re8 15. d4 e4 16. Ne1 Bd6 17. Be3 Qf6 18. g3 g5 19. Qh5 Re6 20. Kg2 Qg7 21. h3 Nce7 22. Qe2 Ng6 23. Kh1 Nf6 24. Rg1 Qh6 25. h4 Nf4 1/2-1/2

[Event "3rd Mersin Open 2018"]
[Site "Mersin"]
[Date "2018.09.14"]
[Round "5.14"]
[White "Soltani, Fardin"]
[Black "Ilkbahar, Nimet Seray"]
[Result "1/2-1/2"]
[ECO "B12"]
[WhiteElo "1644"]
[BlackElo "1545"]
[Annotator "NA RC"]
[PlyCount "48"]
[EventDate "2018.09.09"]
[EventType "swiss"]
[EventCountry "TUR"]
[SourceTitle "playchess.com"]
[Source "ChessBase"]
[SourceQuality "1"]
[TimeControl "5400+30"]

1. e4 {[%emt 0:00:30]} c6 {[%emt 0:00:30]} 2. d4 {[%emt 0:00:30]} d5 {[%emt 0:00:00]} 3. e5 {[%emt 0:00:30]} Bf5 {[%emt 0:00:00]} 4. Bd3 {[%emt 0:00:00]} Bxd3 {[%emt 0:01:30]} 5. Qxd3 {[%emt 0:00:00]} e6 {[%emt 0:00:00]} 6. f4 {[%emt 0:03:30]} c5 {[%emt 0:07:00]} 7. Ne2 {[%emt 0:03:30]} Ne7 {[%emt 0:02:30]} 8. O-O {[%emt 0:02:30]} Nf5 {[%emt 0:05:30]} 9. c3 {[%emt 0:01:30]} Nc6 {[%emt 0:04:30]} 10. g4 {[%emt 0:06:30]} Nh4 {[%emt 0:23:30]} 11. Be3 {[%emt 0:23:30]} c4 {[%emt 0:13:30]} 12. Qc2 {[%emt 0:00:30]} h5 {[%emt 0:01:30]} 13. gxh5 {[%emt 0:02:30]} Nf5 {[%emt 0:03:30]} 14. Bf2 {[%emt 0:00:30]} Rxh5 {[%emt 0:05:30]} 15. Ng3 {[%emt 0:01:30]} Nxg3 {[%emt 0:00:30]} 16. Bxg3 {[%emt 0:00:30]} Ne7 {[%emt 0:03:30]} 17. Qe2 {[%emt 0:02:30]} g6 {[%emt 0:01:30]} 18. b3 {[%emt 0:01:30]} b5 {[%emt 0:02:30]} 19. a4 {[%emt 0:03:30]} bxa4 {[%emt 0:03:08]} 20. bxc4 {[%emt 0:01:30]} Qd7 {[%emt 0:04:56]} 21. Qa2 {[%emt 0:04:30]} dxc4 {[%emt 0:07:49]} 22. Qxc4 {[%emt 0:02:30]} a3 {[%emt 0:03:34]} 23. Nxa3 {[%emt 0:04:30]} Nd5 {[%emt 0:00:19]} 24. Qd3 {[%emt 0:04:30]} Rb8 {[%emt 0:02:59]} 1/2-1/2